Cogmind - Beta 15 @@@ ROGUE MODE // 2025.10.21 @ 03:13:31 Player: NQH Result: Destroyed by P-70 Sage with Tesla Rifle Performance ------------- Evolutions (3) 1500 Regions Visited (7) 1400 Robots Destroyed (120) 600 Value Destroyed (3063) 3063 Prototype IDs (6) 120 Alien Tech Used (0) 0 Bonus (1655) 1655 TOTAL SCORE: 8338 Bonus ------- Pacifist 200 Follower Combat Kills 55 Entered Garrisons 400 Used RIF Installer 1000 Cogmind --------- Core Integrity 0/700 Matter 286/300 Energy 160/160 System Corruption 7% Temperature Cool (3) Movement Hovering (52) Location -7/Garrison Parts ------- > --- POWER (2) -------- Light Nuclear Core > --- PROPULSION (4) --- Gravmag System Gravmag System Gravmag System > --- UTILITY (5) ------ Medium Storage Unit Improved Signal Interpreter Relay Coupler [Sentry] (6) > --- WEAPON (2) ------- Improved Datajack Spear > --- INVENTORY (10) --- System Shield Relay Coupler [NC] (22) Relay Coupler [NC] (29) Relay Coupler [Cutter] (22) Relay Coupler [Grunt] (27) Relay Coupler [Duelist] (33) Relay Coupler [Sentry] (19) Relay Coupler [Sentry] (25) Improved Remote Datajack Peak State ------------ > --- POWER ------------ Light Ion Engine Improved Deuterium Engine > --- PROPULSION ------- Xenon Bombardment Thruster Xenon Bombardment Thruster Xenon Bombardment Thruster Xenon Bombardment Thruster > --- UTILITY ---------- Huge Storage Unit Improved Signal Interpreter Improved Melee Analysis Suite Improved Melee Analysis Suite Improved Light Armor Plating > --- WEAPON ----------- Power Maul Spear > --- INVENTORY -------- Xenon Bombardment Thruster Cooled VTOL Module Cooled VTOL Module Cooled VTOL Module Medium Storage Unit Weight Redist. System Improved Melee Analysis Suite Improved Melee Analysis Suite Hardened Heavy Armor Plating Hardened Heavy Armor Plating Relay Coupler [NC] Relay Coupler [NC] Relay Coupler [Cutter] Relay Coupler [Sentry] Improved Datajack Improved Datajack Improved Remote Datajack Spear [Rating: 51] Favorites ----------- Power Light Nuclear Core Engine Light Ion Engine Power Core Light Nuclear Core Propulsion Compact Wheel Treads Improved Treads Leg Aluminum Leg Wheel Compact Wheel Hover Unit Gravmag System Flight Unit Cooled VTOL Module Utility Improved Signal Interpreter Device Improved Sensor Array Storage Small Storage Unit Processor Improved Signal Interpreter Hackware Relay Coupler [Grunt] Protection Improved Light Armor Plating Weapon Power Maul Energy Gun Small Laser Ballistic Cannon Improved Light Cannon Impact Weapon Power Maul Slashing Weapon Katana Piercing Weapon Spear Special Melee Weapon Improved Datajack Build | -11 -10 -9 -8 -7 -7 -7 -7 ------- Run | Yrd Mat Mat Mat Fac Gar Fac Gar Slots Evolved 6 | . . 2 2 2 . . . Power 1 | . . . 1 . . . . Propulsion 2 | . . . . 2 . . . Utility 3 | . . 2 1 . . . . Weapon . | . . . . . . . . Parts Attached 105 | 7 1 5 37 19 16 5 15 Power 22 | 1 . 1 11 3 2 2 2 Engine 14 | 1 . 1 8 3 . 1 . Core 8 | . . . 3 . 2 1 2 Reactor . | . . . . . . . . Propulsion 39 | 2 . . 13 8 8 1 7 Treads 5 | . . . 3 . . . 2 Leg 1 | . . . 1 . . . . Wheel 15 | 2 . . 4 7 . . 2 Hover 7 | . . . 3 . . 1 3 Flight 11 | . . . 2 1 8 . . Utility 31 | 1 1 2 8 7 5 2 5 Device 6 | . . 1 1 2 . 1 1 Storage 3 | 1 . . 1 1 . . . Processor 5 | . . . 1 2 1 1 . Hackware 8 | . . . 1 . 3 . 4 Protection 9 | . 1 1 4 2 1 . . Artifact . | . . . . . . . . Weapon 13 | 3 . 2 5 1 1 . 1 Energy Gun 3 | 3 . . . . . . . Energy Cannon . | . . . . . . . . Ballistic Gun . | . . . . . . . . Ballistic Cannon 2 | . . 2 . . . . . Launcher . | . . . . . . . . Special Weapon . | . . . . . . . . Impact Weapon 4 | . . . 4 . . . . Slashing Weapon 1 | . . . 1 . . . . Piercing Weapon 1 | . . . . 1 . . . Special Melee Weapon 2 | . . . . . 1 . 1 Unidentified Prototypes 6 | . . . 4 1 . 1 . Corrupted Parts 1 | . . . . 1 . . . System Corruption 3 | . . . . 3 . . . Parts Lost 37 | . . . 10 4 13 1 9 Power 10 | . . . 3 1 5 . 1 Propulsion 15 | . . . 4 2 4 1 4 Utility 10 | . . . 3 1 2 . 4 Weapon 2 | . . . . . 2 . . Highest Loss Streak 5 | . . . 4 2 5 1 4 To Critical Strikes . | . . . . . . . . Average Backups 11 | . 2 6 9 19 16 7 8 Power . | . 1 1 . . . . . Propulsion 3 | . . . 2 8 4 1 . Utility 5 | . . 2 4 7 7 4 6 Weapon . | . . . . 1 . . . Tool/Special . | . . . . . . . . Unused Backups 21 | . . . 4 1 4 . 12 Power . | . . . . . . . . Propulsion 1 | . . . . 1 . . . Utility 16 | . . . 2 . 3 . 11 Weapon 1 | . . . . . 1 . . Tool/Special 3 | . . . 2 . . . 1 Average Slot Usage (%) 78 | . 62 75 74 84 87 70 83 Engine 5 | . 14 11 6 1 6 . . Core 4 | . . . 4 6 2 4 10 Treads 1 | . . . 2 . . . 2 Wheel 9 | . 28 22 4 22 11 . 2 Hover 2 | . . . 2 . . . 10 Flight 3 | . . . . . 14 26 7 Device 5 | . . 8 4 6 2 1 8 Storage 8 | . 14 11 9 7 7 7 7 Processor 8 | . . . 8 12 13 1 7 Hackware 2 | . . . . . 9 20 9 Protection 9 | . 5 14 14 9 3 . . Ballistic Cannon 2 | . . 7 3 . . . . Impact Weapon 9 | . . . 11 14 6 . . Piercing Weapon 1 | . . . . . 4 5 6 Peak Build Rating 51 | 5 5 13 35 46 51 40 44 Average Rating 29 | 3 4 8 26 35 39 32 36 On Entrance 19 | . 4 5 13 34 44 22 34 Naked Turns . | . . . . . . . . Heaviest Build 114 | 8 9 22 114 114 112 27 25 Greatest Support 70 | 32 32 32 43 70 64 26 40 Greatest Overweight (x) 37 | . . . 37 5 4 1 2 Average Overweight (x) 1 | . . . 3 1 . . . Largest Inventory Capacity 25 | 8 8 8 25 25 25 10 10 Average Capacity 15 | 6 8 8 14 25 17 10 10 Most Carried 25 | 2 3 8 17 25 25 10 10 Average Carried 12 | . 2 6 10 22 16 7 8 Final Capacity 25 | 8 8 8 25 25 10 10 10 Final Carried 25 | 1 3 8 16 25 9 9 9 Class Distribution -------------------- 60% | Mutant 16% | Bothacker-Mutant 9% | Scavenger-Mutant 8% | Gladiator 3% | Bothacker-Sprinter Dominant Class ---------------- Mutant | -10/Materials Mutant | -9/Materials Mutant | -8/Materials Scavenger-Mutant | -7/Factory Bothacker-Mutant | -7/Garrison Bothacker-Mutant | -7/Factory Bothacker-Mutant | -7/Garrison Resources | -11 -10 -9 -8 -7 -7 -7 -7 ----------- Run | Yrd Mat Mat Mat Fac Gar Fac Gar Matter Collected 1772 | 221 . 161 677 154 278 65 216 Remotely . | . . . . . . . . Salvage Created 4120 | . . 119 1843 1526 185 82 365 Parts 114 | . . 7 48 30 6 2 21 Haulers Intercepted 4 | . . . 2 2 . . . Recyclers Shooed 4 | . . . 3 1 . . . Parts Field Recycled . | . . . . . . . . Retrieved Matter . | . . . . . . . . Parts Self-Destructed . | . . . . . . . . Prevented . | . . . . . . . . Kills | -11 -10 -9 -8 -7 -7 -7 -7 ------- Run | Yrd Mat Mat Mat Fac Gar Fac Gar Combat Hostiles Destroyed 51 | . . 4 21 12 5 . 9 Melee 31 | . . . 11 9 2 . 9 Cannons 8 | . . 4 4 . . . . Classes Destroyed 12 | . . 4 6 2 . . . Worker 25 | . . 1 11 13 . . . Builder 16 | . . . 12 4 . . . Tunneler 3 | . . . 1 2 . . . Hauler 4 | . . . 2 2 . . . Recycler 16 | . . 1 7 7 . 1 . Operator 1 | . . . 1 . . . . Watcher 4 | . . . 3 1 . . . Swarmer 16 | . . 3 6 . 3 . 4 Grunt 21 | . . . 12 7 . . 2 Sentry 7 | . . 1 3 . 2 . 1 Hunter 2 | . . . . 2 . . . Programmer 5 | . . . . 3 . . 2 Best Kill Streak 11 | . . 4 6 11 3 1 5 Combat Bots Only 5 | . . 3 5 3 3 . 5 Max Kills in Single Turn 1 | . . 1 1 1 1 1 1 Gunslinging . | . . . . . . . . Exploded . | . . . . . . . . Melee 1 | . . . 1 1 1 . 1 Uniques/NPCs Destroyed . | . . . . . . . . Combat | -11 -10 -9 -8 -7 -7 -7 -7 -------- Run | Yrd Mat Mat Mat Fac Gar Fac Gar Hostile Shots Fired 694 | . 7 24 284 63 214 . 102 Missed 225 | . 3 6 68 17 89 . 42 Hits 469 | . 4 18 216 46 125 . 60 Projectile 469 | . 4 18 216 46 125 . 60 Critical Strikes 12 | . . 1 9 2 . . . Damage Taken 5742 | . 47 188 2611 724 1398 . 774 Core 1157 | . 27 28 386 123 313 . 280 Absorbed by Shields 250 | . . 67 183 . . . . Redirected to Shielding 10 | . 6 4 . . . . . Core Remaining (%) 77 | 100 89 93 29 . . . . Volleys Fired 36 | . . 8 28 . . . . Largest 2 | . . 2 2 . . . . Hottest 66 | . . 66 66 . . . . Shots Fired 71 | . . 16 55 . . . . Gun . | . . . . . . . . Cannon 71 | . . 16 55 . . . . Launcher . | . . . . . . . . Special . | . . . . . . . . Kinetic 71 | . . 16 55 . . . . Thermal . | . . . . . . . . Explosive . | . . . . . . . . Electromagnetic . | . . . . . . . . Robot Hit Streak 7 | . . 2 7 . . . . Robot Miss Streak 3 | . . 2 3 . . . . Penetration Max . | . . . . . . . . Secondary Targets . | . . . . . . . . Shots Hit Robots 208 | . . 8 108 52 16 1 23 Core Hits 58 | . . 5 24 15 3 1 10 Critical Kills 4 | . . . 1 3 . . . Critical Parts Destroyed 30 | . . . 15 11 4 . . Critical Strikes 45 | . . . 23 14 5 . 3 Blast 3 | . . . 3 . . . . Smash 35 | . . . 16 14 5 . . Sever 4 | . . . 4 . . . . Impale 3 | . . . . . . . 3 Melee Attacks 251 | . . . 118 69 28 2 34 Impact 166 | . . . 77 69 20 . . Slashing 41 | . . . 41 . . . . Piercing 32 | . . . . . 6 2 24 Sneak Attacks 66 | . . . 36 29 . 1 . Combat Hostiles . | . . . . . . . . Follow-up Attacks 10 | . . . 6 2 2 . . Damage Inflicted 11071 | . 9 171 5752 3946 633 78 482 Guns . | . . . . . . . . Cannons 670 | . . 167 503 . . . . Explosions . | . . . . . . . . Melee 10374 | . . . 5237 3946 633 78 480 Ramming 27 | . 9 4 12 . . . 2 Kinetic 670 | . . 167 503 . . . . Thermal . | . . . . . . . . Explosive . | . . . . . . . . Electromagnetic . | . . . . . . . . Impact 8338 | . . . 3858 3946 534 . . Slashing 1379 | . . . 1379 . . . . Piercing 657 | . . . . . 99 78 480 Highest Corruption 7 | . . . 5 6 6 6 7 Average Corruption 5 | . . . 4 4 6 6 6 Corruption Purged . | . . . . . . . . Corruption Blocked . | . . . . . . . . Effects 81 | . . . 38 14 14 3 12 Message Errors 23 | . . . 11 4 2 . 6 Matter Fused 17 | . . . 7 3 4 1 2 Heat Flow Errors 9 | . . . 5 2 1 . 1 Energy Discharges 16 | . . . 8 3 1 2 2 Parts Fused 1 | . . . 1 . . . . Data Loss (minor) 10 | . . . 4 1 4 . 1 Data Loss (major) 4 | . . . 2 1 1 . . Alerts 1 | . . . . . 1 . . Overload Shots . | . . . . . . . . Overflow Damage 4683 | . . . 2409 2024 225 . 25 Projectiles 6 | . . . 3 3 . . . Explosions . | . . . . . . . . Melee 4677 | . . . 2406 2021 225 . 25 Knockbacks 26 | . . 1 15 10 . . . Impact 23 | . . . 13 10 . . . Kinetic 3 | . . 1 2 . . . . Secondary . | . . . . . . . . Self-Inflicted Damage 13 | . 4 2 6 . . . 1 Shots . | . . . . . . . . Rammed 5 | . 2 1 1 . . . 1 Targets Rammed 5 | . 2 1 1 . . . 1 Kicked . | . . . . . . . . Crushed . | . . . . . . . . Highest Temperature 435 | . . 50 300 120 100 435 147 Average Temperature 67 | . . 22 58 65 23 190 85 Received Heat Transfer 1679 | . 24 48 1136 126 219 . 126 Effects 2 | . . . 1 . . 1 . Shutdowns 1 | . . . . . . 1 . Energy Bleed 1 | . . . 1 . . . . Siege Activations . | . . . . . . . . Martial Activations . | . . . . . . . . Shielding Activations . | . . . . . . . . Robots Disrupted . | . . . . . . . . Combat Hostiles . | . . . . . . . . Robots Corrupted 34 | . . . 19 12 3 . . Combat Hostiles 12 | . . . 6 3 3 . . Parts Fried 59 | . . . 30 28 1 . . Impact Corruptions 137 | . . . 70 61 6 . . Robots Melted . | . . . . . . . . Combat Hostiles . | . . . . . . . . Parts Melted . | . . . . . . . . Heat Transferred . | . . . . . . . . Parts Sabotaged . | . . . . . . . . Parts Stolen . | . . . . . . . . Parts Stripped . | . . . . . . . . Power Chain Reactions . | . . . . . . . . Alert | -11 -10 -9 -8 -7 -7 -7 -7 ------- Run | Yrd Mat Mat Mat Fac Gar Fac Gar Maximum Alert Level 2 | . . . 1 1 2 . 1 Low Security (%) 50 | 100 100 100 48 50 4 100 45 Level 1 49 | . . . 51 49 89 . 54 Level 2 . | . . . . . 6 . . Level 3 . | . . . . . . . . Level 4 . | . . . . . . . . Level 5 . | . . . . . . . . High Security . | . . . . . . . . Max Security . | . . . . . . . . Peak Influence 411 | . 6 72 329 344 411 194 346 Initial 195 | . . 1 27 145 195 194 93 Average 181 | . . 7 168 213 313 166 210 Influence Increases 2458 | . 6 112 1045 566 326 20 383 Destroy 0b10 Robot/C 1060 | . . 80 420 240 120 . 200 Destroy 0b10 Robot/NC 345 | . . 10 185 145 . 5 . Destroy Leader 226 | . . 20 100 76 10 . 20 Allied During Kill 4 | . . . . . 1 . 3 Trap Triggered on 0b10 10 | . . . . . 10 . . Successful Hack 20 | . 6 . . . 14 . . Disable Machine 120 | . . . 75 30 . 15 . Anti-Garrison Action 150 | . . . . . 50 . 100 Destroy Structure 13 | . . 2 10 . 1 . . Lose Combat Pursuer 510 | . . . 255 75 120 . 60 Influence Decreases 2132 | . . 51 791 608 234 257 191 Entered New Map 523 | . . 5 40 176 84 177 41 Time Decay 1159 | . . 46 651 392 . 70 . Lost Part 370 | . . . 100 40 130 10 90 Lost Ally 80 | . . . . . 20 . 60 Squads Dispatched 9 | . 2 1 3 3 . . . Investigation 3 | . . . 2 1 . . . Extermination 2 | . . . . 2 . . . Reinforcement 4 | . 2 1 1 . . . . Assault . | . . . . . . . . Garrison . | . . . . . . . . Intercept . | . . . . . . . . Searches Triggered . | . . . . . . . . Construction Impeded . | . . . . . . . . Haulers Reinforced . | . . . . . . . . Active Scanning Responses . | . . . . . . . . Cargo Convoy Interrupts . | . . . . . . . . Stealth | -11 -10 -9 -8 -7 -7 -7 -7 --------- Run | Yrd Mat Mat Mat Fac Gar Fac Gar Distress Signals 4 | . . 1 2 1 . . . Communications Jammed . | . . . . . . . . Distress Signals . | . . . . . . . . Times Spotted 133 | . 8 9 45 22 26 . 23 Peak Tracking Total 14 | . 6 4 8 4 14 . 6 Tactical Retreats 22 | . . . 14 4 3 . 1 Traps | -11 -10 -9 -8 -7 -7 -7 -7 ------- Run | Yrd Mat Mat Mat Fac Gar Fac Gar Traps Triggered 8 | . . . 2 2 2 . 2 Indirectly . | . . . . . . . . Trap Hack Attempts 53 | . . . . . 40 . 13 Triggered . | . . . . . . . . Disarmed . | . . . . . . . . Reprogrammed 5 | . . . . . 4 . 1 Reused 1 | . . . . . 1 . . Traps Extracted . | . . . . . . . . Installed . | . . . . . . . . Triggered 1 | . . . . . 1 . . Machines | -11 -10 -9 -8 -7 -7 -7 -7 ---------- Run | Yrd Mat Mat Mat Fac Gar Fac Gar Machines Disabled 11 | . . . 5 2 1 1 2 Max in Single Turn 1 | . . . 1 1 1 1 1 Garrison Relay 3 | . . . . . 1 . 2 Machines Repaired . | . . . . . . . . Machines Dismantled . | . . . . . . . . Machines Sabotaged . | . . . . . . . . Overloaded Fab Kills . | . . . . . . . . Hacking | -11 -10 -9 -8 -7 -7 -7 -7 --------- Run | Yrd Mat Mat Mat Fac Gar Fac Gar Machines Accessed 7 | . 1 1 . 2 1 1 1 Terminals 4 | . 1 . . 1 1 . 1 Fabricators . | . . . . . . . . Repair Stations . | . . . . . . . . Recycling Units . | . . . . . . . . Scanalyzers 1 | . . 1 . . . . . Garrison Access 2 | . . . . 1 . 1 . Total Hacks 9 | . 1 2 . 2 1 1 2 Successful 6 | . 1 2 . 1 1 1 . Failed 3 | . . . . 1 . . 2 Catastrophic 1 | . . . . 1 . . . Database Lockouts . | . . . . . . . . Manual 2 | . 1 . . 1 . . . Terminals 5 | . 1 . . 1 1 . 2 Fabricators . | . . . . . . . . Repair Stations . | . . . . . . . . Recycling Units . | . . . . . . . . Scanalyzers 2 | . . 2 . . . . . Garrison Access 2 | . . . . 1 . 1 . Terminal Hacks 2 | . 1 . . . 1 . . Unreport Threat 1 | . 1 . . . . . . Garrison Registry 1 | . . . . . 1 . . Fabricator Hacks . | . . . . . . . . Repair Station Hacks . | . . . . . . . . Recycling Unit Hacks . | . . . . . . . . Scanalyzer 2 | . . 2 . . . . . Insert Component 1 | . . 1 . . . . . Analyze 1 | . . 1 . . . . . Garrison Access Hacks 2 | . . . . 1 . 1 . Unlock Access 2 | . . . . 1 . 1 . Unauthorized Hacks . | . . . . . . . . Terminals . | . . . . . . . . Fabricators . | . . . . . . . . Repair Stations . | . . . . . . . . Recycling Units . | . . . . . . . . Scanalyzers . | . . . . . . . . Garrison Access . | . . . . . . . . Data Cores Recovered . | . . . . . . . . Used . | . . . . . . . . Hacking Detections 5 | . . . . 2 1 1 1 Full Trace Events . | . . . . . . . . Feedback Events . | . . . . . . . . Feedback Blocked . | . . . . . . . . Robot Schematics Acquired . | . . . . . . . . Robots Built . | . . . . . . . . Authchips . | . . . . . . . . Time . | . . . . . . . . Total Robot Build Rating . | . . . . . . . . Part Schematics Acquired 1 | . . 1 . . . . . Parts Built . | . . . . . . . . Authchips . | . . . . . . . . Time . | . . . . . . . . Total Part Build Rating . | . . . . . . . . Parts Repaired . | . . . . . . . . Time . | . . . . . . . . Parts Recycled . | . . . . . . . . Recycled Matter . | . . . . . . . . Retrieved Matter . | . . . . . . . . Retrieved Components . | . . . . . . . . Parts Scanalyzed 1 | . . 1 . . . . . Part Schematics Acquired 1 | . . 1 . . . . . Parts Damaged . | . . . . . . . . Bothacking | -11 -10 -9 -8 -7 -7 -7 -7 ------------ Run | Yrd Mat Mat Mat Fac Gar Fac Gar Used RIF Installer 2 | . . . . . 1 . 1 Watcher Feeds 1 | . . . . . . . 1 Robots Hacked 8 | . . . . . 1 . 7 Non-combat . | . . . . . . . . Combat 8 | . . . . . 1 . 7 Robot Hacks Applied 8 | . . . . . 1 . 7 formatsys_high 8 | . . . . . 1 . 7 Relay Couplers Released 15 | . . . . 4 3 . 8 Machine Destruction 11 | . . . . . 3 . 8 Programmers 4 | . . . . 4 . . . Attached 7 | . . . . . 3 . 4 Fabnet Peak Effective % . | . . . . . . . . Robots Rewired . | . . . . . . . . Allies Hacked . | . . . . . . . . Hacks Repelled . | . . . . . . . . Allies | -11 -10 -9 -8 -7 -7 -7 -7 -------- Run | Yrd Mat Mat Mat Fac Gar Fac Gar Total Allies 8 | . . . . . 1 . 7 Largest Group 2 | . . . . . 1 . 2 Highest-Rated Group 64 | . . . . . 32 . 64 Highest-Rated Ally 32 | . . . . . 32 . 32 Total Orders . | . . . . . . . . Ally Attacks 25 | . . . . . 2 . 23 Total Damage 423 | . . . . . 76 . 347 Kills 3 | . . . . . 1 . 2 Allies Corrupted . | . . . . . . . . Allies Melted . | . . . . . . . . Intel | -11 -10 -9 -8 -7 -7 -7 -7 ------- Run | Yrd Mat Mat Mat Fac Gar Fac Gar Active Infowar (turns) 1340 | . . . 887 . . 38 415 Sensors 1340 | . . . 887 . . 38 415 Robot Analysis Total . | . . . . . . . . Derelict Logs Recovered . | . . . . . . . . Drone Launches . | . . . . . . . . Drone Recoveries . | . . . . . . . . Exploration | -11 -10 -9 -8 -7 -7 -7 -7 ------------- Run | Yrd Mat Mat Mat Fac Gar Fac Gar Turns Passed 5481 | 53 118 356 2694 932 615 143 570 Spaces Moved 3018 | 40 113 319 978 523 452 193 400 Core 95 | 1 . . 76 . 18 . . Treads 179 | . . . 128 . . . 51 Legs 19 | . . . 19 . . . . Wheels 1794 | 39 113 319 543 523 171 . 86 Hover 446 | . . . 212 . . . 234 Flight 485 | . . . . . 263 193 29 Fastest Speed 17 | 50 100 100 95 100 17 21 28 Average Speed 129 | 98 100 100 210 118 72 57 80 Slowest Speed 1900 | 100 100 100 1900 155 299 107 180 Overloaded Moves 94 | . . . . . 58 12 24 Propulsion Burnouts 2 | . . . . . 1 1 . Robots Hopped . | . . . . . . . . Potential Cave-ins . | . . . . . . . . Cave-ins Triggered . | . . . . . . . . Exploration Rate (%) 27 | 3 35 43 36 16 39 6 41 Regions Visited 7 Branch Regions . Pre-discovered Areas . | . . . . . . . . Known Exits Taken 3 | . . . 1 1 . 1 . Unknown Exits Taken 3 | 1 1 1 . . . . . Scrap Searched . | . . . . . . . . Spaces Dug 9 | . . . 8 . 1 . . Terrain Destroyed 14 | . . 2 11 . 1 . . Melee 7 | . . . 6 . 1 . . Projectile 7 | . . 2 5 . . . . AOE . | . . . . . . . . Terrain Rammed . | . . . . . . . . Walls Destroyed . | . . . . . . . . Machines Disabled . | . . . . . . . . Actions | -11 -10 -9 -8 -7 -7 -7 -7 --------- Run | Yrd Mat Mat Mat Fac Gar Fac Gar Total 4102 | 53 117 338 1355 713 695 222 609 Wait 437 | . . . 143 73 117 8 96 Move 3010 | 39 112 318 977 522 450 192 400 Hop . | . . . . . . . . Pick Up 55 | 1 2 5 16 15 3 3 10 Fast Attach 73 | 7 1 4 29 12 7 5 8 Attach 29 | . . . 2 4 9 5 9 Detach 27 | 3 . . 6 4 6 5 3 Swap 30 | . . 1 12 7 9 . 1 Drop 77 | 3 . 1 33 16 14 2 8 Fire 36 | . . 8 28 . . . . Melee 227 | . . . 108 60 23 2 34 Ram 4 | . 2 1 1 . . . . Kick . | . . . . . . . . Crush . | . . . . . . . . Escape Stasis 32 | . . . . . 16 . 16 Rewire 12 | . . . . . 1 . 11 Trap 53 | . . . . . 40 . 13 Miscellaneous . | . . . . . . . . Route ------- -11/Scrapyard -10/Materials -9/Materials (discovered 2 exits: [*Mat] / [*Min]) -8/Materials -7/Factory -7/Garrison (discovered 3 exits: *Fac x3) -7/Factory (discovered 2 exits: *Fac / Gar) -7/Garrison (discovered 1 exit: *Fac) History --------- Turn | Location | Event 13 | -11/Scrapyard | Discovered new exit (range 15) 54 | -11/Scrapyard | Entered Materials 150 | -10/Materials | Discovered new exit (range 10) 172 | -10/Materials | Entered another Materials area 172 | -9/Materials | Evolved 2 slots: Utility x2 301 | -9/Materials | Build established: Mutant 326 | -9/Materials | Discovered new exit (range 6) 480 | -9/Materials | Discovered new exit (range 10) 528 | -9/Materials | Entered another Materials area 528 | -8/Materials | Evolved 2 slots: Power x1, Utility x1 1462 | -8/Materials | Lost 3 parts (1p1n1u) 1503 | -8/Materials | Discovered new exit (range 15) 1575 | -8/Materials | Core integrity fell below 50% 1591 | -8/Materials | Lost 4 parts (2p1n1u) 3220 | -8/Materials | Identified exit to Factory 3222 | -8/Materials | Entered Factory 3222 | -7/Factory | Evolved 2 slots: Propulsion x2 3683 | -7/Factory | Build established: Scavenger-Mutant 4153 | -7/Factory | Identified exit to Garrison 4154 | -7/Factory | Entered Garrison 4166 | -7/Garrison | Build established: Gladiator 4273 | -7/Garrison | Discovered new exit (range 66) 4273 | -7/Garrison | Discovered new exit (range 84) 4273 | -7/Garrison | Discovered new exit (range 53) 4297 | -7/Garrison | Installed Relay Interface Framework 4394 | -7/Garrison | Triggered checkpoint 4429 | -7/Garrison | Garrison Relay disabled 4626 | -7/Garrison | Triggered checkpoint 4688 | -7/Garrison | Lost 3 parts (1p1n1w) 4744 | -7/Garrison | Core integrity fell below 50% 4769 | -7/Garrison | Entered Factory 4785 | -7/Factory | Lost 5 parts (1p2n1u1w) 4860 | -7/Factory | Discovered new exit (range 9) 4900 | -7/Factory | Identified exit to Factory 4911 | -7/Factory | Identified exit to Garrison 4912 | -7/Factory | Entered Garrison 4970 | -7/Garrison | Triggered checkpoint 5030 | -7/Garrison | Garrison Relay disabled 5076 | -7/Garrison | Build established: Bothacker-Mutant 5142 | -7/Garrison | P-60 Hacker assimilated allied Trooper 4a 5167 | -7/Garrison | Core integrity fell below 20% 5222 | -7/Garrison | Lost 4 parts (3n1u) 5346 | -7/Garrison | Triggered checkpoint 5362 | -7/Garrison | Triggered checkpoint 5382 | -7/Garrison | Expanded RIF knowledge: Watcher Feeds 5388 | -7/Garrison | Garrison Relay disabled 5466 | -7/Garrison | Discovered exit to Factory (range 10) 5482 | -7/Garrison | Destroyed by P-70 Sage with Tesla Rifle Last Messages --------------- 05382_ Expanded RIF knowledge: Watcher Feeds. 05388_ Garrison Relay disabled. 05388_ Relay Coupler [Sentry] tumbles out of relay unit. 05388_ Relay Coupler [NC] tumbles out of relay unit. 05388_ Relay Coupler [Sentry] tumbles out of relay unit. 05388_ Relay Coupler [Grunt] tumbles out of relay unit. 05391_ Acquired Relay Coupler [Sentry]. 05393_ Acquired Relay Coupler [Grunt]. 05394_ Acquired Relay Coupler [NC]. 05396_ Acquired Relay Coupler [Sentry]. 05435_ HGEG&ZDSD#%CAA526:KPQ:BZDGFQJOB 05466_ EXIT=FOUND: FACTORY 05480_ Relay Coupler [Grunt] destroyed. 05482_ Slammed into P-70 Sage. 05482_ Attempting to access garrison exit controls... RIF authorized. 05482_ Lgt. Nuclear Core destroyed. Map ----- +----------------------------------------------------+ | | | ???????????????????????????????????????????? | | ???????????????????????????????????????????? | | ???????????????????????????????????????????? | | ???????????????????????????????????????????? | | ???????????????????????????????????????????? | | ???????????????????????????????????????????? | | ???????????????????????????????????????????? | | ???????????????????????????????????????????? | | ???????????????????????????????????????????? | | ???????????????????????????????????????????? | | ???????????????????????????????????????????? | | ???????????????????????????????????????????? | | ????????????????????????????#####??????????? | | ????????????????????????????#"""#??????????? | | ????????????????????????????#" "#??????????? | | ????????????????????????????#" "#??????????? | | ????????????????????????????#" "#??????????? | | ????????????????????????????# #??????????? | | ????????????????????????????## ##??????????? | | ?????????????????????????????# #???????????? | | ?????????????????????????????# #??#####????? | | ?????????????????????????????# #??# #????? | | ?????????????????????????????# #### ###??? | | ??????????????????######???### #??? | | ??????????????????#@ p #???#"# ######## #??? | | ??????????????????# < #???#" #??????# #??? | | ??????????????????# #???# #??????# #??? | | ??????????????????### #???#" #??????# #??? | | ????????????????????# #???#"# #??????# #??? | | ????????????????????# #???#####??????# #??? | | ????????????????????# #??????????????# #??? | | ????????????????????# #??????????????# #??? | | ????????????????????# ################ #### | | ????????????????????# | | ????????????????????# | | ????????????????????############## ######## | | ?????????????????????????????????# #??????# | | ?????????????????????????????????# #??????# | | ?????????????????????????????????# #??????# | | ?????????????????????????????????# #??????# | | ?????????????????????????????????# #??????# | | ?????????????????????????????????# #??????# | | ?????????????????????????????????# #?????## | | ?????????????????????????????????# ####### | | ?????????????????????????????????# | | ?????????????????????????????????# ^ | | ?????????????????????????????????#####T#### | | ?????????????????????????????????????#????# | | ??????????????????????????????????????????" | +----------------------------------------------------+ Best States ------------- Heat Dissipation 48 Energy Generation 27 Energy Capacity 480 Matter Stores 300 Matter Capacity 300 Sight Range 16 Robot Scan Range 15 Terrain Scan Density 10 Additional Mass Support 6 Armor Coverage 750 Core Shielding 20 Evasion (%) 66 Melee Accuracy 12 Recoil Reduction 2 Offensive Hacking 10 Relay Coupler Types 3 Relay Coupler Value 67 Item Schematics ----------------- Datajack | -9/Materials | Scanalyzed Robot Schematics ------------------ None Fabricated ------------ Nothing Repaired ---------- Nothing Alien Tech Used ----------------- None Achievements -------------- None Challenges ------------ None Game ------ Seed EncryptedChargeShell Manual? 0 Play Time 00:51:36 Cumulative 36.3 hours Start 2025.10.21 @ 02:18:47 End 2025.10.21 @ 03:13:31 Sessions 1 Manual Loads 0 Difficulty Rogue Special Mode None Game No. 139 Rogue 139 Adventurer 0 Explorer 0 Win Type - Total 0 Types 0/0/0/0/0/0/0/0/0/0 Lore% 11 Gallery% 32 Achievement% 30 Wizard Run 0 Options --------- Layout 1 ASCII 0 Keyboard 1 Movement Vi Keybinds 0 Fullscreen 1 Font 16/SmallcapsGlow Map View 55x38 Zoom Use 0% Tactical HUD 1 Map Filters NONE Filters NONE Steam 1 RUN: 2652d554-7064-45df-9966-6cc83edd245c